[Event "TOP 12F 2021"]
[Site "RENNES, France"]
[Date "2021.08.29"]
[Round "5.1"]
[White "Guichard, Pauline"]
[Black "Javakhishvili, Lela"]
[Result "1/2-1/2"]
[TimeControl "1H30 + 30 sec/coup"]
[WhiteElo "2414"]
[BlackElo "2470"]

1. d4 {[%clk 01:30:14]} {[%emt 01:21:15]} Nf6 {[%clk 01:30:49]} 2. c4 {[%clk
01:30:37]} {[%emt 00:00:04]} e6 {[%clk 01:31:12]} {[%emt 00:00:06]} 3. Nf3
{[%clk 01:31:01]} {[%emt 00:00:07]} c5 {[%clk 01:31:17]} {[%emt 00:00:25]} 4.
d5 {[%clk 01:30:56]} {[%emt 00:00:35]} d6 {[%clk 01:31:34]} {[%emt 00:00:13]} 5.
Nc3 {[%clk 01:30:49]} {[%emt 00:00:37]} exd5 {[%clk 01:31:41]} {[%emt
00:00:23]} 6. cxd5 {[%clk 01:30:59]} {[%emt 00:00:20]} g6 {[%clk 01:32:06]}
{[%emt 00:00:05]} 7. Nd2 {[%clk 01:29:52]} {[%emt 00:01:36]} Bg7 {[%clk
01:32:30]} {[%emt 00:00:06]} 8. e4 {[%clk 01:30:10]} {[%emt 00:00:12]} O-O
{[%clk 01:32:53]} {[%emt 00:00:06]} 9. Be2 {[%clk 01:30:26]} {[%emt 00:00:14]}
Re8 {[%clk 01:32:31]} {[%emt 00:00:51]} 10. O-O {[%clk 01:27:41]} {[%emt
00:03:14]} Na6 {[%clk 01:32:46]} {[%emt 00:00:16]} 11. f3 {[%clk 01:22:25]}
{[%emt 00:05:47]} Nc7 {[%clk 01:31:02]} {[%emt 00:02:14]} 12. a4 {[%clk
01:22:37]} {[%emt 00:00:18]} Nd7 {[%clk 01:21:46]} {[%emt 00:09:46]} 13. Nc4
{[%clk 01:15:41]} {[%emt 00:07:26]} Ne5 {[%clk 01:21:55]} {[%emt 00:00:21]} 14.
Ne3 {[%clk 01:15:53]} {[%emt 00:00:18]} f5 {[%clk 01:18:21]} {[%emt 00:04:04]}
15. exf5 {[%clk 01:15:16]} {[%emt 00:01:08]} gxf5 {[%clk 01:18:46]} {[%emt
00:00:05]} 16. f4 {[%clk 01:15:43]} {[%emt 00:00:03]} Ng6 {[%clk 01:18:59]}
{[%emt 00:00:16]} 17. Kh1 {[%clk 01:15:38]} {[%emt 00:00:35]} Qf6 {[%clk
01:09:31]} {[%emt 00:09:58]} 18. Bd3 {[%clk 01:10:20]} {[%emt 00:05:49]} Bd7
{[%clk 01:09:06]} {[%emt 00:00:55]} 19. Qc2 {[%clk 00:59:21]} {[%emt 00:11:29]}
Rf8 {[%clk 01:09:19]} {[%emt 00:00:17]} 20. Bd2 {[%clk 00:59:38]} {[%emt
00:00:13]} Na6 {[%clk 01:03:21]} {[%emt 00:06:27]} 21. Na2 {[%clk 00:54:13]}
{[%emt 00:05:55]} Rad8 {[%clk 00:49:04]} {[%emt 00:14:47]} 22. Bc3 {[%clk
00:48:42]} {[%emt 00:06:01]} Qf7 {[%clk 00:49:27]} {[%emt 00:00:07]} 23. Bxg7
{[%clk 00:48:25]} {[%emt 00:00:48]} Kxg7 {[%clk 00:49:55]} {[%emt 00:00:02]} 24.
b4 {[%clk 00:46:49]} {[%emt 00:02:06]} cxb4 {[%clk 00:44:55]} {[%emt 00:05:30]}
25. Bxa6 {[%clk 00:46:44]} {[%emt 00:00:35]} bxa6 {[%clk 00:45:06]} {[%emt
00:00:17]} 26. Nxb4 {[%clk 00:47:07]} {[%emt 00:00:08]} a5 {[%clk 00:44:40]}
{[%emt 00:00:56]} 27. Nc6 {[%clk 00:46:01]} {[%emt 00:01:37]} Rde8 {[%clk
00:44:31]} {[%emt 00:00:39]} 28. Rae1 {[%clk 00:36:40]} {[%emt 00:09:51]} Kg8
{[%clk 00:40:19]} {[%emt 00:04:42]} 29. Qd3 {[%clk 00:28:20]} {[%emt 00:08:50]}
Qf6 {[%clk 00:36:18]} {[%emt 00:04:32]} 30. Nc4 {[%clk 00:26:06]} {[%emt
00:02:43]} Nxf4 {[%clk 00:31:28]} {[%emt 00:05:19]} 31. Qg3+ {[%clk 00:26:07]}
{[%emt 00:00:29]} Ng6 {[%clk 00:31:48]} {[%emt 00:00:10]} 32. Rxe8 {[%clk
00:20:04]} {[%emt 00:06:34]} Rxe8 {[%clk 00:29:50]} {[%emt 00:02:28]} 33. Nxd6
{[%clk 00:19:14]} {[%emt 00:01:20]} Rf8 {[%clk 00:28:42]} {[%emt 00:01:38]} 34.
Ne4 {[%clk 00:14:55]} {[%emt 00:04:50]} Qh4 {[%clk 00:24:05]} {[%emt 00:05:07]}
35. Qxh4 {[%clk 00:12:45]} {[%emt 00:02:40]} Nxh4 {[%clk 00:24:27]} {[%emt
00:00:08]} 36. Ng5 {[%clk 00:12:44]} {[%emt 00:00:32]} Ng6 {[%clk 00:22:14]}
{[%emt 00:02:41]} 37. h3 {[%clk 00:10:42]} {[%emt 00:02:32]} f4 {[%clk
00:20:18]} {[%emt 00:02:26]} 38. Nf3 {[%clk 00:07:46]} {[%emt 00:03:27]} Rf5
{[%clk 00:16:36]} {[%emt 00:04:11]} 39. Rd1 {[%clk 00:08:11]} {[%emt 00:00:06]}
Kf8 {[%clk 00:16:43]} {[%emt 00:00:23]} 40. Rd4 {[%clk 00:07:47]} {[%emt
00:00:54]} Ne7 {[%clk 00:15:23]} {[%emt 00:01:49]} 41. Nce5 {[%clk 00:07:19]}
{[%emt 00:00:59]} Ke8 {[%clk 00:15:46]} {[%emt 00:00:06]} 42. Re4 {[%clk
00:03:17]} {[%emt 00:04:33]} Kd8 {[%clk 00:12:19]} {[%emt 00:03:56]} 43. Rd4
{[%clk 00:02:13]} {[%emt 00:01:35]} a6 {[%clk 00:08:39]} {[%emt 00:04:09]} 44.
Kg1 {[%clk 00:01:58]} {[%emt 00:00:45]} Ng6 {[%clk 00:08:16]} {[%emt 00:00:54]}
45. Nd3 {[%clk 00:02:00]} {[%emt 00:00:28]} Kc7 {[%clk 00:07:33]} {[%emt
00:01:12]} 46. Nd2 {[%clk 00:01:58]} {[%emt 00:00:33]} Rf8 {[%clk 00:05:28]}
{[%emt 00:02:35]} 47. Kf2 {[%clk 00:01:20]} {[%emt 00:01:08]} Rb8 {[%clk
00:05:25]} {[%emt 00:00:33]} 48. d6+ {[%clk 00:01:13]} {[%emt 00:00:37]} Kd8
{[%clk 00:05:11]} {[%emt 00:00:43]} 49. h4 {[%clk 00:01:27]} {[%emt 00:00:17]}
Nxh4 {[%clk 00:05:01]} {[%emt 00:00:39]} 50. Rxf4 {[%clk 00:01:53]} {[%emt
00:00:04]} Nf5 {[%clk 00:01:50]} {[%emt 00:03:41]} 51. Nc4 {[%clk 00:02:09]}
{[%emt 00:00:14]} h5 {[%clk 00:02:03]} {[%emt 00:00:17]} 52. Nde5 {[%clk
00:01:14]} {[%emt 00:01:25]} Rb4 {[%clk 00:02:29]} {[%emt 00:00:04]} 53. g3
{[%clk 00:00:51]} {[%emt 00:00:53]} h4 {[%clk 00:01:10]} {[%emt 00:01:49]} 54.
Nf7+ {[%clk 00:00:42]} {[%emt 00:00:39]} Ke8 {[%clk 00:01:13]} {[%emt
00:00:26]} 55. g4 {[%clk 00:00:46]} {[%emt 00:00:27]} Kxf7 {[%clk 00:01:16]}
{[%emt 00:00:26]} 56. gxf5 {[%clk 00:00:38]} {[%emt 00:00:38]} Kf6 {[%clk
00:01:38]} {[%emt 00:00:08]} 57. Rxh4 {[%clk 00:00:35]} {[%emt 00:00:33]} Bxf5
{[%clk 00:01:27]} {[%emt 00:00:41]} 58. Ke3 {[%clk 00:00:34]} {[%emt 00:00:31]}
Be6 {[%clk 00:00:52]} {[%emt 00:01:05]} 59. Rh6+ {[%clk 00:00:34]} {[%emt
00:00:31]} Kf5 {[%clk 00:01:19]} {[%emt 00:00:03]} 60. Nd2 {[%clk 00:00:34]}
{[%emt 00:00:30]} Rxa4 {[%clk 00:01:15]} {[%emt 00:00:33]} 61. Rh7 {[%clk
00:00:38]} {[%emt 00:00:27]} Ke5 {[%clk 00:01:07]} {[%emt 00:00:37]} 62. d7
{[%clk 00:00:50]} {[%emt 00:00:19]} Ra3+ {[%clk 00:00:45]} {[%emt 00:00:51]} 63.
Ke2 {[%clk 00:00:45]} {[%emt 00:00:36]} Bg4+ {[%clk 00:01:13]} {[%emt
00:00:02]} 64. Kf2 {[%clk 00:01:10]} {[%emt 00:00:04]} Rd3 {[%clk 00:01:35]}
{[%emt 00:00:08]} 65. Nc4+ {[%clk 00:01:31]} {[%emt 00:00:10]} Kf6 {[%clk
00:01:14]} {[%emt 00:00:51]} 66. Rh6+ {[%clk 00:01:39]} {[%emt 00:00:22]} Kg5
{[%clk 00:00:44]} {[%emt 00:00:59]} 67. Rd6 {[%clk 00:00:43]} {[%emt 00:01:27]}
Rxd6 {[%clk 00:01:03]} {[%emt 00:00:11]} 68. Nxd6 {[%clk 00:01:09]} {[%emt
00:00:03]} Bxd7 {[%clk 00:01:29]} {[%emt 00:00:04]} 1/2-1/2

[Event "TOP 12F 2021"]
[Site "RENNES, France"]
[Date "2021.08.29"]
[Round "5.2"]
[White "Sebag, Marie"]
[Black "Gaponenko, Inna"]
[Result "1-0"]
[TimeControl "1H30 + 30 sec/coup"]
[WhiteElo "2447"]
[BlackElo "2357"]

1. e4 {[%clk 01:29:14]} {[%emt 00:00:46]} c5 {[%clk 01:28:22]} {[%emt
00:02:39]} 2. Nf3 {[%clk 01:29:36]} {[%emt 00:00:07]} g6 {[%clk 01:28:49]}
{[%emt 00:00:04]} 3. d4 {[%clk 01:29:27]} {[%emt 00:00:39]} cxd4 {[%clk
01:29:14]} {[%emt 00:00:05]} 4. Qxd4 {[%clk 01:29:45]} {[%emt 00:00:12]} Nf6
{[%clk 01:29:37]} {[%emt 00:00:07]} 5. Nc3 {[%clk 01:29:20]} {[%emt 00:00:55]}
Nc6 {[%clk 01:29:48]} {[%emt 00:00:19]} 6. Qa4 {[%clk 01:28:58]} {[%emt
00:00:52]} d6 {[%clk 01:30:05]} {[%emt 00:00:13]} 7. e5 {[%clk 01:28:45]}
{[%emt 00:00:43]} dxe5 {[%clk 01:22:04]} {[%emt 00:08:32]} 8. Nxe5 {[%clk
01:28:34]} {[%emt 00:00:40]} Qd4 {[%clk 01:17:28]} {[%emt 00:05:06]} 9. Nxc6
{[%clk 01:15:59]} {[%emt 00:13:05]} Qxa4 {[%clk 01:17:51]} {[%emt 00:00:07]} 10.
Nxa4 {[%clk 01:16:27]} {[%emt 00:00:03]} bxc6 {[%clk 01:18:14]} {[%emt
00:00:06]} 11. Bc4 {[%clk 00:54:09]} {[%emt 00:22:48]} Nd5 {[%clk 01:03:05]}
{[%emt 00:15:40]} 12. O-O {[%clk 00:52:36]} {[%emt 00:02:02]} Bf5 {[%clk
00:52:21]} {[%emt 00:11:14]} 13. c3 {[%clk 00:48:20]} {[%emt 00:04:45]} Bc2
{[%clk 00:26:59]} {[%emt 00:25:53]} 14. Bb3 {[%clk 00:33:03]} {[%emt 00:15:47]}
Bxb3 {[%clk 00:15:13]} {[%emt 00:12:17]} 15. axb3 {[%clk 00:33:27]} {[%emt
00:00:06]} e6 {[%clk 00:09:13]} {[%emt 00:06:30]} 16. Rd1 {[%clk 00:29:54]}
{[%emt 00:04:02]} O-O-O {[%clk 00:01:17]} {[%emt 00:08:27]} 17. c4 {[%clk
00:27:55]} {[%emt 00:02:30]} Nb4 {[%clk 00:01:43]} {[%emt 00:00:03]} 18. Nb6+
{[%clk 00:27:15]} {[%emt 00:01:10]} Kc7 {[%clk 00:01:57]} {[%emt 00:00:17]} 19.
Rxd8 {[%clk 00:18:13]} {[%emt 00:09:32]} Kxb6 {[%clk 00:02:05]} {[%emt
00:00:23]} 20. Rb8+ {[%clk 00:17:23]} {[%emt 00:01:20]} 1-0

[Event "TOP 12F 2021"]
[Site "RENNES, France"]
[Date "2021.08.29"]
[Round "5.3"]
[White "Maisuradze, Nino"]
[Black "Broly, Mathilde"]
[Result "1-0"]
[TimeControl "1H30 + 30 sec/coup"]
[WhiteElo "2245"]
[BlackElo "2154"]

1. d4 {[%clk 01:30:20]} {[%emt 01:21:15]} Nf6 {[%clk 01:30:05]} {[%emt
00:00:25]} 2. c4 {[%clk 01:30:47]} {[%emt 00:00:11]} g6 {[%clk 01:30:28]}
{[%emt 00:00:07]} 3. Nc3 {[%clk 01:31:10]} {[%emt 00:00:07]} d5 {[%clk
01:30:50]} {[%emt 00:00:08]} 4. cxd5 {[%clk 01:31:29]} {[%emt 00:00:11]} Nxd5
{[%clk 01:31:10]} {[%emt 00:00:09]} 5. Bd2 {[%clk 01:31:43]} {[%emt 00:00:17]}
Bg7 {[%clk 01:27:46]} {[%emt 00:03:53]} 6. e4 {[%clk 01:31:59]} {[%emt
00:00:14]} Nb6 {[%clk 01:04:50]} {[%emt 00:23:26]} 7. Be3 {[%clk 01:32:13]}
{[%emt 00:00:16]} O-O {[%clk 01:03:14]} {[%emt 00:02:06]} 8. h4 {[%clk
01:18:48]} {[%emt 00:13:55]} Nc6 {[%clk 01:00:20]} {[%emt 00:03:24]} 9. d5
{[%clk 01:08:05]} {[%emt 00:11:14]} Ne5 {[%clk 01:00:40]} {[%emt 00:00:09]} 10.
Bd4 {[%clk 01:06:25]} {[%emt 00:02:10]} c6 {[%clk 00:53:16]} {[%emt 00:07:54]}
11. f4 {[%clk 01:04:21]} {[%emt 00:02:34]} Ng4 {[%clk 00:53:11]} {[%emt
00:00:35]} 12. Bxg7 {[%clk 01:04:35]} {[%emt 00:00:17]} Kxg7 {[%clk 00:53:25]}
{[%emt 00:00:15]} 13. Qd4+ {[%clk 01:03:14]} {[%emt 00:01:51]} Nf6 {[%clk
00:48:50]} {[%emt 00:05:05]} 14. O-O-O {[%clk 00:57:27]} {[%emt 00:06:17]} cxd5
{[%clk 00:33:42]} {[%emt 00:15:38]} 15. e5 {[%clk 00:47:21]} {[%emt 00:10:37]}
Ng4 {[%clk 00:31:57]} {[%emt 00:02:14]} 16. h5 {[%clk 00:46:02]} {[%emt
00:01:49]} Bf5 {[%clk 00:17:18]} {[%emt 00:15:09]} 17. Nf3 {[%clk 00:45:24]}
{[%emt 00:01:09]} Qc7 {[%clk 00:12:22]} {[%emt 00:05:25]} 18. Be2 {[%clk
00:39:08]} {[%emt 00:06:46]} e6 {[%clk 00:08:47]} {[%emt 00:04:05]} 19. Rh4
{[%clk 00:35:14]} {[%emt 00:04:25]} Nh6 {[%clk 00:09:06]} {[%emt 00:00:11]} 20.
Ng5 {[%clk 00:30:17]} {[%emt 00:05:27]} gxh5 {[%clk 00:07:04]} {[%emt
00:02:31]} 21. Bxh5 {[%clk 00:21:01]} {[%emt 00:09:47]} Qc4 {[%clk 00:04:50]}
{[%emt 00:02:44]} 22. Qxc4 {[%clk 00:16:30]} {[%emt 00:05:01]} Nxc4 {[%clk
00:04:58]} {[%emt 00:00:22]} 23. Bf3 {[%clk 00:04:08]} {[%emt 00:12:53]} Bg6
{[%clk 00:02:54]} {[%emt 00:02:33]} 24. g4 {[%clk 00:03:13]} {[%emt 00:01:24]}
Ng8 {[%clk 00:02:25]} {[%emt 00:00:58]} 25. b3 {[%clk 00:03:09]} {[%emt
00:00:35]} Ne3 {[%clk 00:02:42]} {[%emt 00:00:13]} 26. Re1 {[%clk 00:01:18]}
{[%emt 00:02:20]} d4 {[%clk 00:03:08]} {[%emt 00:00:04]} 27. Nce4 {[%clk
00:00:40]} {[%emt 00:01:08]} h6 {[%clk 00:02:40]} {[%emt 00:00:58]} 28. Nh3
{[%clk 00:00:44]} {[%emt 00:00:27]} Rac8+ {[%clk 00:02:19]} {[%emt 00:00:50]}
29. Kb2 {[%clk 00:00:38]} {[%emt 00:00:36]} Rc2+ {[%clk 00:02:38]} {[%emt
00:00:11]} 30. Ka3 {[%clk 00:00:39]} {[%emt 00:00:30]} Ne7 {[%clk 00:02:03]}
{[%emt 00:01:04]} 31. Nd6 {[%clk 00:00:45]} {[%emt 00:00:25]} Rb8 {[%clk
00:01:28]} {[%emt 00:01:04]} 32. Re2 {[%clk 00:00:38]} {[%emt 00:00:37]} Rxe2
{[%clk 00:01:36]} {[%emt 00:00:23]} 33. Bxe2 {[%clk 00:01:03]} {[%emt
00:00:04]} d3 {[%clk 00:01:57]} {[%emt 00:00:09]} 34. Bf3 {[%clk 00:01:08]}
{[%emt 00:00:26]} b5 {[%clk 00:01:35]} {[%emt 00:00:52]} 35. Nf2 {[%clk
00:01:14]} {[%emt 00:00:24]} Rb6 {[%clk 00:01:16]} {[%emt 00:00:49]} 36. Rh1
{[%clk 00:01:04]} {[%emt 00:00:40]} Nc6 {[%clk 00:00:57]} {[%emt 00:00:49]} 37.
Be4 {[%clk 00:00:41]} {[%emt 00:00:53]} Bxe4 {[%clk 00:01:08]} {[%emt
00:00:19]} 38. Ndxe4 {[%clk 00:01:02]} {[%emt 00:00:09]} d2 {[%clk 00:00:40]}
{[%emt 00:00:59]} 39. Nxd2 {[%clk 00:01:15]} {[%emt 00:00:17]} Nd4 {[%clk
00:01:00]} {[%emt 00:00:10]} 40. Nd3 {[%clk 00:00:41]} {[%emt 00:01:04]} a5
{[%clk 00:01:11]} {[%emt 00:00:19]} 41. Kb2 {[%clk 00:00:34]} {[%emt 00:00:38]}
Rc6 {[%clk 00:01:00]} {[%emt 00:00:41]} 42. Ne1 {[%clk 00:00:35]} {[%emt
00:00:29]} Nd1+ {[%clk 00:00:54]} {[%emt 00:00:35]} 43. Kb1 {[%clk 00:00:48]}
{[%emt 00:00:17]} Ne2 {[%clk 00:00:45]} {[%emt 00:00:39]} 44. Nd3 {[%clk
00:00:53]} {[%emt 00:00:26]} Nec3+ {[%clk 00:00:35]} {[%emt 00:00:40]} 45. Ka1
{[%clk 00:00:34]} {[%emt 00:00:50]} a4 {[%clk 00:00:57]} {[%emt 00:00:07]} 46.
bxa4 {[%clk 00:00:44]} {[%emt 00:00:20]} bxa4 {[%clk 00:01:18]} {[%emt
00:00:09]} 47. Ne4 {[%clk 00:00:45]} {[%emt 00:00:28]} Ne3 {[%clk 00:01:09]}
{[%emt 00:00:39]} 48. Rc1 {[%clk 00:00:49]} {[%emt 00:00:26]} Ned5 {[%clk
00:01:37]} {[%emt 00:00:02]} 49. Nxc3 {[%clk 00:00:40]} {[%emt 00:00:39]} Rxc3
{[%clk 00:02:01]} {[%emt 00:00:06]} 50. Rxc3 {[%clk 00:00:59]} {[%emt
00:00:11]} Nxc3 {[%clk 00:02:26]} {[%emt 00:00:04]} 51. Kb2 {[%clk 00:01:27]}
{[%emt 00:00:03]} Nb5 {[%clk 00:01:55]} {[%emt 00:01:00]} 52. Nc5 {[%clk
00:01:15]} {[%emt 00:00:42]} Nd4 {[%clk 00:00:52]} {[%emt 00:01:33]} 53. Nxa4
{[%clk 00:01:10]} {[%emt 00:00:37]} Ne2 {[%clk 00:01:20]} {[%emt 00:00:01]} 54.
Nc5 {[%clk 00:00:44]} {[%emt 00:00:56]} Nxf4 {[%clk 00:01:13]} {[%emt
00:00:37]} 55. a4 {[%clk 00:01:13]} {[%emt 00:00:01]} Nd5 {[%clk 00:01:26]}
{[%emt 00:00:15]} 56. a5 {[%clk 00:01:39]} {[%emt 00:00:05]} Kg6 {[%clk
00:01:00]} {[%emt 00:00:55]} 57. Ne4 {[%clk 00:00:34]} {[%emt 00:01:35]} h5
{[%clk 00:00:40]} {[%emt 00:00:49]} 58. gxh5+ {[%clk 00:01:03]} {[%emt
00:00:02]} Kh6 {[%clk 00:00:38]} {[%emt 00:00:32]} 59. Nf6 {[%clk 00:01:01]}
{[%emt 00:00:33]} Nb4 {[%clk 00:00:35]} {[%emt 00:00:32]} 60. Kc3 {[%clk
00:01:17]} {[%emt 00:00:14]} Nc6 {[%clk 00:00:51]} {[%emt 00:00:14]} 61. a6
{[%clk 00:01:45]} {[%emt 00:00:03]} Kg5 {[%clk 00:00:36]} {[%emt 00:00:44]} 62.
Kb3 {[%clk 00:01:43]} {[%emt 00:00:32]} Kf5 {[%clk 00:00:32]} {[%emt 00:00:34]}
63. h6 {[%clk 00:01:55]} {[%emt 00:00:19]} Kg6 {[%clk 00:00:33]} {[%emt
00:00:29]} 64. h7 {[%clk 00:02:20]} {[%emt 00:00:05]} Kg7 {[%clk 00:00:59]}
{[%emt 00:00:04]} 65. Ka4 {[%clk 00:02:30]} {[%emt 00:00:21]} Nxe5 {[%clk
00:01:07]} {[%emt 00:00:22]} 66. a7 {[%clk 00:02:11]} {[%emt 00:00:49]} Nc4
{[%clk 00:01:27]} {[%emt 00:00:09]} 67. Kb5 {[%clk 00:02:32]} {[%emt 00:00:09]}
1-0

[Event "TOP 12F 2021"]
[Site "RENNES, France"]
[Date "2021.08.29"]
[Round "5.4"]
[White "Nicoara, Malina"]
[Black "Fischer, Julie"]
[Result "0-1"]
[TimeControl "1H30 + 30 sec/coup"]
[WhiteElo "2066"]
[BlackElo "2073"]

1. d4 {[%clk 01:28:09]} {[%emt 00:01:44]} Nf6 {[%clk 01:30:54]} {[%emt
00:00:06]} 2. c4 {[%clk 01:28:32]} {[%emt 00:00:07]} g6 {[%clk 01:31:20]}
{[%emt 00:00:05]} 3. Nc3 {[%clk 01:28:47]} {[%emt 00:00:14]} Bg7 {[%clk
01:31:40]} {[%emt 00:00:10]} 4. e4 {[%clk 01:29:05]} {[%emt 00:00:12]} d6
{[%clk 01:32:04]} {[%emt 00:00:07]} 5. f3 {[%clk 01:29:12]} {[%emt 00:00:22]}
a6 {[%clk 01:32:07]} {[%emt 00:00:27]} 6. Be3 {[%clk 01:29:16]} {[%emt
00:00:26]} c6 {[%clk 01:32:22]} {[%emt 00:00:15]} 7. Qd2 {[%clk 01:29:06]}
{[%emt 00:00:40]} b5 {[%clk 01:32:03]} {[%emt 00:00:48]} 8. O-O-O {[%clk
01:28:22]} {[%emt 00:01:14]} Qa5 {[%clk 01:29:52]} {[%emt 00:02:41]} 9. Kb1
{[%clk 01:28:46]} {[%emt 00:00:06]} b4 {[%clk 01:29:20]} {[%emt 00:01:02]} 10.
Nce2 {[%clk 01:29:09]} {[%emt 00:00:06]} Nfd7 {[%clk 01:28:11]} {[%emt
00:01:40]} 11. Bh6 {[%clk 01:23:16]} {[%emt 00:06:23]} Bxh6 {[%clk 01:20:46]}
{[%emt 00:07:55]} 12. Qxh6 {[%clk 01:23:41]} {[%emt 00:00:05]} c5 {[%clk
01:21:09]} {[%emt 00:00:07]} 13. d5 {[%clk 00:44:28]} {[%emt 00:39:43]} Nf6
{[%clk 01:19:09]} {[%emt 00:02:29]} 14. Nc1 {[%clk 00:38:16]} {[%emt 00:06:42]}
Nbd7 {[%clk 01:18:12]} {[%emt 00:01:27]} 15. g4 {[%clk 00:34:51]} {[%emt
00:03:56]} Qc7 {[%clk 01:10:13]} {[%emt 00:08:29]} 16. Nh3 {[%clk 00:30:04]}
{[%emt 00:05:17]} Bb7 {[%clk 01:07:04]} {[%emt 00:03:40]} 17. Ng5 {[%clk
00:23:30]} {[%emt 00:07:04]} Ne5 {[%clk 00:55:06]} {[%emt 00:12:27]} 18. h3
{[%clk 00:21:47]} {[%emt 00:02:14]} Rf8 {[%clk 00:55:23]} {[%emt 00:00:12]} 19.
f4 {[%clk 00:17:43]} {[%emt 00:04:34]} Ned7 {[%clk 00:55:44]} {[%emt 00:00:09]}
20. Bd3 {[%clk 00:16:30]} {[%emt 00:01:43]} O-O-O {[%clk 00:44:57]} {[%emt
00:11:17]} 21. Rhe1 {[%clk 00:16:32]} {[%emt 00:00:29]} Rde8 {[%clk 00:43:05]}
{[%emt 00:02:22]} 22. Nf3 {[%clk 00:13:18]} {[%emt 00:03:43]} e5 {[%clk
00:39:30]} {[%emt 00:04:05]} 23. f5 {[%clk 00:10:30]} {[%emt 00:03:18]} a5
{[%clk 00:36:36]} {[%emt 00:03:24]} 24. g5 {[%clk 00:10:25]} {[%emt 00:00:36]}
Nh5 {[%clk 00:36:53]} {[%emt 00:00:12]} 25. Qxh7 {[%clk 00:10:07]} {[%emt
00:00:49]} Ndf6 {[%clk 00:34:48]} {[%emt 00:02:35]} 26. gxf6 {[%clk 00:09:51]}
{[%emt 00:00:46]} Rh8 {[%clk 00:35:11]} {[%emt 00:00:07]} 27. Qxh8 {[%clk
00:10:12]} {[%emt 00:00:09]} Rxh8 {[%clk 00:35:36]} {[%emt 00:00:04]} 28. fxg6
{[%clk 00:10:26]} {[%emt 00:00:17]} fxg6 {[%clk 00:35:30]} {[%emt 00:00:35]} 29.
Rg1 {[%clk 00:10:30]} {[%emt 00:00:26]} Qf7 {[%clk 00:34:17]} {[%emt 00:01:42]}
30. Ng5 {[%clk 00:08:07]} {[%emt 00:02:54]} Qxf6 {[%clk 00:34:40]} {[%emt
00:00:07]} 31. Rdf1 {[%clk 00:08:35]} {[%emt 00:00:02]} Nf4 {[%clk 00:34:46]}
{[%emt 00:00:24]} 32. Ne2 {[%clk 00:08:06]} {[%emt 00:00:59]} Rh4 {[%clk
00:28:41]} {[%emt 00:06:35]} 33. Ne6 {[%clk 00:02:55]} {[%emt 00:05:41]} Kb8
{[%clk 00:28:52]} {[%emt 00:00:19]} 34. N2xf4 {[%clk 00:02:00]} {[%emt
00:01:25]} exf4 {[%clk 00:29:15]} {[%emt 00:00:06]} 35. Rf3 {[%clk 00:01:56]}
{[%emt 00:00:34]} Bc8 {[%clk 00:29:12]} {[%emt 00:00:33]} 36. Ng5 {[%clk
00:02:14]} {[%emt 00:00:12]} Rh5 {[%clk 00:28:49]} {[%emt 00:00:53]} 37. e5
{[%clk 00:01:17]} {[%emt 00:01:27]} Qxe5 {[%clk 00:28:56]} {[%emt 00:00:22]} 38.
Nf7 {[%clk 00:01:29]} {[%emt 00:00:18]} Qf6 {[%clk 00:28:47]} {[%emt 00:00:40]}
39. Bxg6 {[%clk 00:00:45]} {[%emt 00:01:14]} Bf5+ {[%clk 00:29:10]} {[%emt
00:00:07]} 0-1